[Event "44th Chess Olympiad Open 2022"]
[Site "Chennai"]
[Date "2022.07.30"]
[Round "2.48"]
[White "Masango, Spencer"]
[Black "Altell, Majed"]
[Result "1-0"]
[WhiteElo "2170"]
[BlackElo "1807"]
[Annotator "RC"]
[PlyCount "55"]
[EventDate "2022.??.??"]
[TimeControl "60"]

1. c4 {[%emt 0:00:11]} Nf6 {[%emt 0:00:38]} 2. Nc3 {[%emt 0:01:22]} e6 {
[%emt 0:01:07]} 3. g3 {[%emt 0:00:23]} d5 {[%emt 0:01:02]} 4. Bg2 {[%emt 0:00:
00]} c6 {[%emt 0:01:33]} 5. Nf3 {[%emt 0:03:39]} Nbd7 {[%emt 0:11:13]} 6. cxd5
{[%emt 0:00:44]} exd5 {[%emt 0:00:53]} 7. O-O {[%emt 0:00:47]} Be7 {[%emt 0:00:
00]} 8. Rb1 {[%emt 0:03:24]} O-O {[%emt 0:01:27]} 9. b4 {[%emt 0:00:21]} b5 {
[%emt 0:02:58]} 10. Nd4 {[%emt 0:03:20]} Ne5 {[%emt 0:09:36]} 11. d3 {[%emt 0:
00:00]} Bd7 {[%emt 0:05:09]} 12. a4 {[%emt 0:01:39]} a5 {[%emt 0:02:33]} 13.
axb5 {[%emt 0:05:11]} axb4 {[%emt 0:00:54]} 14. bxc6 {[%emt 0:05:52]} Nxc6 {
[%emt 0:01:06]} 15. Ncb5 {[%emt 0:00:46]} Qb6 {[%emt 0:05:06]} 16. e3 {[%emt 0:
00:00]} Bc5 {[%emt 0:11:04]} 17. Bd2 {[%emt 0:09:03]} Rfb8 {[%emt 0:03:09]} 18.
Nxc6 {[%emt 0:12:36]} Bxc6 {[%emt 0:05:46]} 19. Nd4 {[%emt 0:07:39]} Bxd4 {
[%emt 0:00:31]} 20. Rxb4 {[%emt 0:01:20]} Qc5 {[%emt 0:01:19]} 21. exd4 {
[%emt 0:06:07]} Qa7 {[%emt 0:01:28]} 22. Qb3 {[%emt 0:03:23]} Rxb4 {[%emt 0:00:
00]} 23. Qxb4 {[%emt 0:00:28]} Qa6 {[%emt 0:00:34]} 24. Rc1 {[%emt 0:00:59]}
Bb5 {[%emt 0:02:21]} 25. Bg5 {[%emt 0:00:51]} Bxd3 {[%emt 0:01:03]} 26. Bxf6 {
[%emt 0:00:39]} Qxf6 {[%emt 0:00:17]} 27. Bxd5 {[%emt 0:00:13]} g6 {[%emt 0:00:
00]} 28. Bxa8 {[%emt 0:00:20]} 1-0

[Event "44th Chess Olympiad Open 2022"]
[Site "Chennai"]
[Date "2022.07.30"]
[Round "2.48"]
[White "Zhemba, Jemusse"]
[Black "Isam, Gaith"]
[Result "1-0"]
[WhiteElo "2162"]
[BlackElo "1828"]
[Annotator "ChessBase"]
[PlyCount "199"]
[EventDate "2022.??.??"]
[TimeControl "60"]

1. Nf3 {[%emt 0:00:08]} f5 {[%emt 0:00:59]} 2. d4 {[%emt 0:01:05]} Nf6 {
[%emt 0:00:16]} 3. c4 {[%emt 0:00:17]} e6 {[%emt 0:00:20]} 4. Nc3 {[%emt 0:00:
00]} Bb4 {[%emt 0:00:32]} 5. Qb3 {[%emt 0:04:45]} Bxc3+ {[%emt 0:02:08]} 6.
Qxc3 {[%emt 0:00:56]} Ne4 {[%emt 0:01:18]} 7. Qc2 {[%emt 0:00:17]} d6 {[%emt 0:
00:00]} 8. b3 {[%emt 0:01:38]} O-O {[%emt 0:00:12]} 9. Bb2 {[%emt 0:00:20]} b6
{[%emt 0:02:49]} 10. Nd2 {[%emt 0:04:20]} Bb7 {[%emt 0:05:54]} 11. Nxe4 {
[%emt 0:01:48]} Bxe4 {[%emt 0:01:23]} 12. Qc3 {[%emt 0:00:07]} f4 {[%emt 0:00:
00]} 13. h4 {[%emt 0:04:02]} Nd7 {[%emt 0:08:58]} 14. O-O-O {[%emt 0:03:51]}
Qf6 {[%emt 0:04:50]} 15. f3 {[%emt 0:02:19]} Bb7 {[%emt 0:01:29]} 16. e4 {
[%emt 0:00:57]} e5 {[%emt 0:05:27]} 17. Kb1 {[%emt 0:06:05]} exd4 {[%emt 0:00:
00]} 18. Rxd4 {[%emt 0:00:29]} Ne5 {[%emt 0:00:50]} 19. Qe1 {[%emt 0:10:36]}
Rae8 {[%emt 0:00:33]} 20. Be2 {[%emt 0:00:20]} Kf7 {[%emt 0:06:50]} 21. b4 {
[%emt 0:04:37]} c5 {[%emt 0:09:44]} 22. Rd1 {[%emt 0:00:22]} Ke7 {[%emt 0:00:
00]} 23. Qd2 {[%emt 0:00:52]} Rd8 {[%emt 0:01:41]} 24. Qc3 {[%emt 0:03:03]} Rd7
{[%emt 0:01:17]} 25. Ka1 {[%emt 0:00:42]} h6 {[%emt 0:00:06]} 26. Rd2 {[%emt 0:
00:00]} Rfd8 {[%emt 0:00:59]} 27. Rhd1 {[%emt 0:00:42]} Nc6 {[%emt 0:06:54]}
28. bxc5 {[%emt 0:04:14]} Qxc3 {[%emt 0:04:31]} 29. cxd6+ {[%emt 0:02:12]} Rxd6
{[%emt 0:02:17]} 30. Bxc3 {[%emt 0:00:09]} Rxd2 {[%emt 0:00:36]} 31. Rxd2 {
[%emt 0:00:09]} Rxd2 {[%emt 0:00:33]} 32. Bxd2 {[%emt 0:00:02]} g5 {[%emt 0:00:
00]} 33. hxg5 {[%emt 0:00:16]} hxg5 {[%emt 0:00:22]} 34. Kb2 {[%emt 0:01:16]}
Nd4 {[%emt 0:02:59]} 35. Bd1 {[%emt 0:00:11]} Ne6 {[%emt 0:01:58]} 36. Bb4+ {
[%emt 0:01:09]} Kf7 {[%emt 0:02:39]} 37. Bd6 {[%emt 0:00:33]} Ke8 {[%emt 0:00:
00]} 38. Kc3 {[%emt 0:00:47]} Kd7 {[%emt 0:00:37]} 39. Bb8 {[%emt 0:00:27]} Bc6
{[%emt 0:04:09]} 40. Be5 {[%emt 0:01:35]} Ke7 {[%emt 0:00:19]} 41. a3 {[%emt 0:
00:00]} Ke8 {[%emt 0:32:54]} 42. Bc2 {[%emt 0:01:40]} Ke7 {[%emt 0:00:26]} 43.
Bb8 {[%emt 0:00:32]} Kd7 {[%emt 0:00:39]} 44. Kd2 {[%emt 0:01:03]} Kc8 {
[%emt 0:00:58]} 45. Be5 {[%emt 0:00:19]} Kd7 {[%emt 0:00:36]} 46. Bf6 {[%emt 0:
00:00]} Ke8 {[%emt 0:00:26]} 47. Bc3 {[%emt 0:01:26]} Ke7 {[%emt 0:00:29]} 48.
Ke1 {[%emt 0:00:31]} Nc5 {[%emt 0:02:55]} 49. Kf2 {[%emt 0:00:55]} Ke6 {
[%emt 0:00:00]} 50. Bg7 {[%emt 0:00:00]} Bb7 {[%emt 0:00:00]} 51. Bh6 {[%emt 0:
00:00]} Kf6 {[%emt 0:00:00]} 52. Bf8 {[%emt 0:00:00]} Ba6 {[%emt 0:00:00]} 53.
Bd6 {[%emt 0:00:00]} Bxc4 {[%emt 0:00:00]} 54. Bb8 {[%emt 0:00:00]} a6 {
[%emt 0:00:00]} 55. Bc7 {[%emt 0:00:00]} b5 {[%emt 0:00:00]} 56. Bd8+ {[%emt 0:
00:00]} Kg6 {[%emt 0:00:00]} 57. Be7 {[%emt 0:00:00]} Ne6 {[%emt 0:00:00]} 58.
Bb4 {[%emt 0:00:00]} Nd4 {[%emt 0:00:00]} 59. Bb1 {[%emt 0:00:00]} Kf7 {
[%emt 0:00:00]} 60. g3 {[%emt 0:00:00]} fxg3+ {[%emt 0:00:00]} 61. Kxg3 {
[%emt 0:00:00]} Be2 {[%emt 0:00:00]} 62. f4 {[%emt 0:00:00]} gxf4+ {[%emt 0:00:
00]} 63. Kxf4 {[%emt 0:00:00]} Bc4 {[%emt 0:00:00]} 64. Ke5 {[%emt 0:00:00]}
Nb3 {[%emt 0:05:01]} 65. Kd6 {[%emt 0:00:00]} a5 {[%emt 0:00:32]} 66. Be1 {
[%emt 0:00:00]} a4 {[%emt 0:01:48]} 67. e5 {[%emt 0:00:00]} Nd4 {[%emt 0:00:09]
} 68. Be4 {[%emt 0:00:00]} Ne6 {[%emt 0:00:48]} 69. Bf3 {[%emt 0:00:00]} Nd4 {
[%emt 0:01:26]} 70. Bh5+ {[%emt 0:00:00]} Kf8 {[%emt 0:00:20]} 71. Bf2 {
[%emt 0:00:00]} Nf5+ {[%emt 0:00:48]} 72. Kd7 {[%emt 0:00:00]} Ng7 {[%emt 0:00:
00]} 73. Bc5+ {[%emt 0:00:00]} Kg8 {[%emt 0:00:01]} 74. Bg4 {[%emt 0:00:00]}
Kf7 {[%emt 0:00:05]} 75. Kc6 {[%emt 0:00:12]} Bd3 {[%emt 0:00:38]} 76. Bb4 {
[%emt 0:00:42]} Bc4 {[%emt 0:00:11]} 77. Bc3 {[%emt 0:00:47]} Bd3 {[%emt 0:00:
00]} 78. Kd6 {[%emt 0:00:57]} Bc4 {[%emt 0:00:12]} 79. Bd7 {[%emt 0:00:26]} Ne6
{[%emt 0:01:45]} 80. Bc6 {[%emt 0:00:27]} Nf4 {[%emt 0:01:02]} 81. Bd7 {
[%emt 0:01:58]} Ne6 {[%emt 0:00:30]} 82. Kc6 {[%emt 0:01:57]} Ke7 {[%emt 0:00:
00]} 83. Bb4+ {[%emt 0:00:10]} Kf7 {[%emt 0:00:11]} 84. Kb6 {[%emt 0:00:46]}
Nd4 {[%emt 0:00:52]} 85. Bd6 {[%emt 0:00:42]} Be6 {[%emt 0:01:14]} 86. Bxe6+ {
[%emt 0:01:49]} Kxe6 {[%emt 0:00:01]} 87. Kc5 {[%emt 0:00:01]} Nf5 {[%emt 0:00:
00]} 88. Bb8 {[%emt 0:00:01]} Nh6 {[%emt 0:01:34]} 89. Kxb5 {[%emt 0:00:15]}
Nf7 {[%emt 0:00:09]} 90. Kxa4 {[%emt 0:00:10]} Kd7 {[%emt 0:00:34]} 91. Kb5 {
[%emt 0:04:20]} Nd8 {[%emt 0:00:38]} 92. Kb6 {[%emt 0:01:09]} Kc8 {[%emt 0:00:
00]} 93. Bd6 {[%emt 0:00:43]} Ne6 {[%emt 0:00:23]} 94. a4 {[%emt 0:00:27]} Nf4
{[%emt 0:00:02]} 95. a5 {[%emt 0:00:53]} Nd5+ {[%emt 0:00:01]} 96. Kc5 {
[%emt 0:00:51]} Nf4 {[%emt 0:00:07]} 97. a6 {[%emt 0:00:18]} Ne6+ {[%emt 0:00:
00]} 98. Kb6 {[%emt 0:01:36]} Nf4 {[%emt 0:00:06]} 99. a7 {[%emt 0:00:16]} Nd5+
{[%emt 0:00:02]} 100. Ka6 {[%emt 0:00:09]} 1-0

[Event "44th Chess Olympiad Open 2022"]
[Site "Chennai"]
[Date "2022.07.30"]
[Round "2.48"]
[White "Miswadah, Baha"]
[Black "Mushore, Emarald Takudzwa"]
[Result "0-1"]
[WhiteElo "1985"]
[BlackElo "2153"]
[Annotator "RC"]
[PlyCount "114"]
[EventDate "2022.??.??"]
[TimeControl "60"]

1. d4 {[%emt 0:00:08]} Nf6 {[%emt 0:00:12]} 2. Bf4 {[%emt 0:00:34]} e6 {
[%emt 0:00:20]} 3. e3 {[%emt 0:00:12]} d5 {[%emt 0:01:13]} 4. Nf3 {[%emt 0:00:
00]} Bd6 {[%emt 0:00:29]} 5. Bg3 {[%emt 0:00:20]} O-O {[%emt 0:00:28]} 6. Bd3 {
[%emt 0:00:19]} c5 {[%emt 0:00:15]} 7. c3 {[%emt 0:00:22]} Nc6 {[%emt 0:00:10]}
8. Nbd2 {[%emt 0:00:36]} Re8 {[%emt 0:00:31]} 9. Ne5 {[%emt 0:00:36]} Ne7 {
[%emt 0:00:44]} 10. f4 {[%emt 0:01:14]} b6 {[%emt 0:00:29]} 11. Qf3 {[%emt 0:
00:00]} Bb7 {[%emt 0:00:23]} 12. Bf2 {[%emt 0:04:59]} Qc8 {[%emt 0:03:10]} 13.
g4 {[%emt 0:04:57]} Nd7 {[%emt 0:03:51]} 14. Qh3 {[%emt 0:07:56]} Nf8 {[%emt 0:
00:00]} 15. Rg1 {[%emt 0:18:43]} Ba6 {[%emt 0:06:26]} 16. Bc2 {[%emt 0:00:41]}
b5 {[%emt 0:00:29]} 17. Qh5 {[%emt 0:06:06]} Bxe5 {[%emt 0:02:39]} 18. dxe5 {
[%emt 0:03:07]} Neg6 {[%emt 0:18:11]} 19. Nf3 {[%emt 0:07:20]} Qb7 {[%emt 0:00:
00]} 20. Nd2 {[%emt 0:20:14]} b4 {[%emt 0:03:19]} 21. Rb1 {[%emt 0:05:08]} Qb5
{[%emt 0:01:54]} 22. c4 {[%emt 0:02:04]} Qa5 {[%emt 0:06:49]} 23. Bb3 {[%emt 0:
00:00]} Rad8 {[%emt 0:01:03]} 24. Ke2 {[%emt 0:04:25]} Qc7 {[%emt 0:06:50]} 25.
Rbd1 {[%emt 0:00:24]} Qc6 {[%emt 0:00:00]} 26. Bg3 {[%emt 0:01:12]} dxc4 {
[%emt 0:00:14]} 27. Nxc4 {[%emt 0:02:22]} Qe4 {[%emt 0:02:39]} 28. Rc1 {
[%emt 0:01:03]} Rd4 {[%emt 0:00:33]} 29. Kf2 {[%emt 0:01:11]} Bxc4 {[%emt 0:00:
00]} 30. Bxc4 {[%emt 0:03:06]} Rxc4 {[%emt 0:00:29]} 31. g5 {[%emt 0:00:43]}
Rd8 {[%emt 0:02:00]} 32. Qe2 {[%emt 0:00:16]} Rxc1 {[%emt 0:00:36]} 33. Rxc1 {
[%emt 0:00:13]} Rd5 {[%emt 0:00:59]} 34. Rc4 {[%emt 0:00:57]} Qh1 {[%emt 0:00:
00]} 35. e4 {[%emt 0:00:34]} Rd1 {[%emt 0:00:53]} 36. Ke3 {[%emt 0:00:18]} Rc1
{[%emt 0:01:06]} 37. Kd2 {[%emt 0:00:47]} Rg1 {[%emt 0:00:37]} 38. Ke3 {
[%emt 0:00:19]} Rg2 {[%emt 0:00:24]} 39. Qf3 {[%emt 0:00:44]} Qg1+ {[%emt 0:00:
00]} 40. Bf2 {[%emt 0:00:21]} Qxh2 {[%emt 0:01:03]} 41. Rxc5 {[%emt 0:30:33]}
Qxf4+ {[%emt 0:35:41]} 42. Qxf4 {[%emt 0:00:00]} Nxf4 {[%emt 0:00:00]} 43. Ra5
{[%emt 0:00:00]} Nh3 {[%emt 0:00:00]} 44. Be1 {[%emt 0:00:00]} Rxb2 {[%emt 0:
00:00]} 45. Rxa7 {[%emt 0:00:00]} Nxg5 {[%emt 0:00:00]} 46. Kd3 {[%emt 0:00:00]
} Nf3 {[%emt 0:00:00]} 47. Bg3 {[%emt 0:00:00]} g5 {[%emt 0:00:00]} 48. Ke3 {
[%emt 0:00:00]} g4 {[%emt 0:00:00]} 49. a4 {[%emt 0:00:00]} h5 {[%emt 0:00:00]}
50. a5 {[%emt 0:00:00]} Rb3+ {[%emt 0:00:00]} 51. Kf2 {[%emt 0:00:00]} Ng6 {
[%emt 0:00:00]} 52. a6 {[%emt 0:00:00]} h4 {[%emt 0:00:00]} 53. Bxh4 {[%emt 0:
00:00]} Nfxh4 {[%emt 0:00:00]} 54. Ra8+ {[%emt 0:00:00]} Kg7 {[%emt 0:00:00]}
55. a7 {[%emt 0:00:00]} Ra3 {[%emt 0:00:00]} 56. Rb8 {[%emt 0:00:00]} g3+ {
[%emt 0:00:00]} 57. Kf1 {[%emt 0:00:00]} Ra2 {[%emt 0:00:00]} 0-1

[Event "44th Chess Olympiad Open 2022"]
[Site "Chennai"]
[Date "2022.07.30"]
[Round "2.48"]
[White "seder mohamad"]
[Black "Mwadzura, Roy"]
[Result "1/2-1/2"]
[WhiteElo "1950"]
[BlackElo "2093"]
[Annotator "NA"]
[PlyCount "113"]
[EventDate "2022.??.??"]
[TimeControl "60"]

1. e4 {[%emt 0:00:05]} e6 {[%emt 0:01:34]} 2. d4 {[%emt 0:00:23]} d5 {[%emt 0:
00:00]} 3. Nd2 {[%emt 0:00:09]} Nf6 {[%emt 0:00:11]} 4. e5 {[%emt 0:00:37]}
Nfd7 {[%emt 0:00:11]} 5. f4 {[%emt 0:00:17]} c5 {[%emt 0:00:14]} 6. c3 {
[%emt 0:00:25]} Nc6 {[%emt 0:00:09]} 7. Ndf3 {[%emt 0:00:24]} Qb6 {[%emt 0:00:
00]} 8. a3 {[%emt 0:00:30]} a5 {[%emt 0:04:39]} 9. Ne2 {[%emt 0:01:38]} f6 {
[%emt 0:01:47]} 10. g3 {[%emt 0:03:22]} a4 {[%emt 0:07:41]} 11. Bh3 {[%emt 0:
00:00]} f5 {[%emt 0:03:37]} 12. g4 {[%emt 0:07:57]} g6 {[%emt 0:04:17]} 13.
gxf5 {[%emt 0:03:07]} exf5 {[%emt 0:01:33]} 14. Bg2 {[%emt 0:05:46]} Be7 {
[%emt 0:04:12]} 15. h4 {[%emt 0:01:36]} h5 {[%emt 0:02:17]} 16. O-O {[%emt 0:
00:00]} cxd4 {[%emt 0:02:28]} 17. cxd4 {[%emt 0:02:54]} Qd8 {[%emt 0:01:10]}
18. Ng5 {[%emt 0:13:41]} Nb6 {[%emt 0:00:12]} 19. Kh2 {[%emt 0:06:14]} Na5 {
[%emt 0:03:16]} 20. Nc3 {[%emt 0:01:56]} Nac4 {[%emt 0:02:59]} 21. b3 {[%emt 0:
00:00]} axb3 {[%emt 0:05:55]} 22. Qxb3 {[%emt 0:01:55]} Ra5 {[%emt 0:04:25]}
23. a4 {[%emt 0:03:07]} O-O {[%emt 0:04:39]} 24. Rd1 {[%emt 0:06:27]} Kh8 {
[%emt 0:06:44]} 25. Bd2 {[%emt 0:07:09]} Bxg5 {[%emt 0:14:55]} 26. hxg5 {
[%emt 0:00:14]} Be6 {[%emt 0:00:10]} 27. Nb5 {[%emt 0:02:03]} Nxd2 {[%emt 0:00:
00]} 28. Rxd2 {[%emt 0:00:03]} Nc4 {[%emt 0:00:19]} 29. Re2 {[%emt 0:02:06]}
Qb6 {[%emt 0:01:29]} 30. Rb1 {[%emt 0:01:24]} Rfa8 {[%emt 0:00:30]} 31. Ra2 {
[%emt 0:03:24]} Kg8 {[%emt 0:03:46]} 32. Kh1 {[%emt 0:02:06]} R5a6 {[%emt 0:00:
00]} 33. Nd6 {[%emt 0:04:12]} Qxd4 {[%emt 0:05:09]} 34. Qxb7 {[%emt 0:01:31]}
Qxf4 {[%emt 0:05:35]} 35. Bxd5 {[%emt 0:00:59]} Qxe5 {[%emt 0:00:26]} 36. Bxc4
{[%emt 0:03:00]} Qxd6 {[%emt 0:00:09]} 37. Bxe6+ {[%emt 0:00:54]} Qxe6 {
[%emt 0:00:06]} 38. Rc1 {[%emt 0:02:06]} R6a7 {[%emt 0:01:11]} 39. Qc6 {
[%emt 0:00:35]} Qxc6+ {[%emt 0:01:17]} 40. Rxc6 {[%emt 0:00:01]} Ra6 {[%emt 0:
00:00]} 41. Rac2 {[%emt 0:31:10]} Rxc6 {[%emt 0:32:17]} 42. Rxc6 {[%emt 0:00:
00]} Kf7 {[%emt 0:00:03]} 43. Rc7+ {[%emt 0:01:59]} Ke6 {[%emt 0:00:11]} 44.
Rc6+ {[%emt 0:00:00]} Ke5 {[%emt 0:00:00]} 45. Rxg6 {[%emt 0:00:00]} Rxa4 {
[%emt 0:00:00]} 46. Rb6 {[%emt 0:00:00]} Rh4+ {[%emt 0:00:00]} 47. Kg2 {
[%emt 0:00:00]} Rg4+ {[%emt 0:00:00]} 48. Kf3 {[%emt 0:00:00]} h4 {[%emt 0:00:
00]} 49. Rb5+ {[%emt 0:00:00]} Ke6 {[%emt 0:00:00]} 50. Rb6+ {[%emt 0:00:00]}
Ke7 {[%emt 0:00:00]} 51. Rh6 {[%emt 0:00:00]} Rxg5 {[%emt 0:00:00]} 52. Rxh4 {
[%emt 0:00:00]} Kf6 {[%emt 0:00:00]} 53. Ra4 {[%emt 0:00:00]} Rg1 {[%emt 0:00:
00]} 54. Ra8 {[%emt 0:00:00]} Rb1 {[%emt 0:00:26]} 55. Rf8+ {[%emt 0:00:00]}
Ke6 {[%emt 0:00:48]} 56. Re8+ {[%emt 0:00:00]} Kf7 {[%emt 0:00:03]} 57. Ra8 {
[%emt 0:00:00]} 1/2-1/2

[Event "44th Chess Olympiad Open 2022"]
[Site "Chennai"]
[Date "2022.07.30"]
[Round "2.49"]
[White "Khairallah, Faisal"]
[Black "Soriano, Rudolph P."]
[Result "1-0"]
[WhiteElo "2239"]
[BlackElo "1824"]
[Annotator "ChessBase"]
[PlyCount "67"]
[EventDate "2022.??.??"]
[TimeControl "60"]

1. e4 {[%emt 0:00:05]} Nc6 {[%emt 0:00:13]} 2. d4 {[%emt 0:00:49]} e5 {[%emt 0:
00:00]} 3. d5 {[%emt 0:01:02]} Nce7 {[%emt 0:00:12]} 4. Nf3 {[%emt 0:01:18]}
Ng6 {[%emt 0:00:24]} 5. h4 {[%emt 0:01:09]} h5 {[%emt 0:00:13]} 6. Bg5 {
[%emt 0:13:18]} Nf6 {[%emt 0:00:28]} 7. Be2 {[%emt 0:06:06]} b6 {[%emt 0:00:26]
} 8. g3 {[%emt 0:02:25]} Qe7 {[%emt 0:01:24]} 9. Nfd2 {[%emt 0:01:45]} Qb4 {
[%emt 0:00:56]} 10. Nc3 {[%emt 0:06:42]} a6 {[%emt 0:01:57]} 11. a3 {[%emt 0:
00:00]} Qe7 {[%emt 0:00:06]} 12. Bxh5 {[%emt 0:02:19]} Qd6 {[%emt 0:05:16]} 13.
Bxg6 {[%emt 0:04:27]} fxg6 {[%emt 0:00:30]} 14. Nc4 {[%emt 0:00:16]} Qe7 {
[%emt 0:01:29]} 15. d6 {[%emt 0:03:16]} cxd6 {[%emt 0:03:51]} 16. Nd5 {[%emt 0:
00:00]} Qd8 {[%emt 0:00:45]} 17. Ncxb6 {[%emt 0:00:50]} Rb8 {[%emt 0:01:29]}
18. Nxc8 {[%emt 0:01:29]} Rxc8 {[%emt 0:06:21]} 19. Qd3 {[%emt 0:01:14]} Rc6 {
[%emt 0:02:47]} 20. O-O {[%emt 0:01:36]} Be7 {[%emt 0:02:16]} 21. c4 {[%emt 0:
00:00]} O-O {[%emt 0:03:51]} 22. Rac1 {[%emt 0:02:30]} Nxd5 {[%emt 0:02:40]}
23. Qxd5+ {[%emt 0:02:06]} Kh7 {[%emt 0:01:00]} 24. Be3 {[%emt 0:02:48]} Bxh4 {
[%emt 0:05:18]} 25. Kg2 {[%emt 0:00:18]} Qf6 {[%emt 0:11:15]} 26. f3 {[%emt 0:
00:00]} g5 {[%emt 0:07:17]} 27. Rf2 {[%emt 0:03:49]} Kg6 {[%emt 0:06:24]} 28.
gxh4 {[%emt 0:11:24]} gxh4 {[%emt 0:01:47]} 29. Rg1 {[%emt 0:01:32]} Kh7 {
[%emt 0:02:38]} 30. Kh3 {[%emt 0:00:35]} g6 {[%emt 0:03:56]} 31. Rg4 {[%emt 0:
00:00]} Rh8 {[%emt 0:06:34]} 32. f4 {[%emt 0:00:30]} Qe6 {[%emt 0:05:13]} 33.
Qxe6 {[%emt 0:02:51]} dxe6 {[%emt 0:00:21]} 34. Rxh4+ {[%emt 0:00:13]} 1-0

[Event "44th Chess Olympiad Open 2022"]
[Site "Chennai"]
[Date "2022.07.30"]
[Round "2.49"]
[White "Khoder, Akram"]
[Black "Mafnas, Peter"]
[Result "1-0"]
[WhiteElo "2038"]
[BlackElo "2039"]
[Annotator "NA RC"]
[PlyCount "95"]
[EventDate "2022.??.??"]
[TimeControl "60"]

1. d4 {[%emt 0:00:04]} d5 {[%emt 0:00:07]} 2. c4 {[%emt 0:00:17]} c6 {[%emt 0:
00:00]} 3. Nf3 {[%emt 0:00:06]} Nf6 {[%emt 0:00:07]} 4. g3 {[%emt 0:00:18]} Bf5
{[%emt 0:00:18]} 5. Nc3 {[%emt 0:00:07]} e6 {[%emt 0:00:08]} 6. Qb3 {[%emt 0:
00:00]} Qb6 {[%emt 0:04:44]} 7. c5 {[%emt 0:00:41]} Qxb3 {[%emt 0:00:07]} 8.
axb3 {[%emt 0:00:04]} Be7 {[%emt 0:00:38]} 9. b4 {[%emt 0:00:22]} a6 {[%emt 0:
00:00]} 10. Bf4 {[%emt 0:08:59]} O-O {[%emt 0:00:23]} 11. Bg2 {[%emt 0:19:33]}
Nh5 {[%emt 0:02:46]} 12. Be3 {[%emt 0:09:21]} Nd7 {[%emt 0:00:41]} 13. Nd2 {
[%emt 0:00:26]} e5 {[%emt 0:07:37]} 14. Nb3 {[%emt 0:01:07]} Bc2 {[%emt 0:00:
00]} 15. Na5 {[%emt 0:01:56]} Rab8 {[%emt 0:00:25]} 16. Bh3 {[%emt 0:02:58]}
exd4 {[%emt 0:01:50]} 17. Bxd4 {[%emt 0:01:55]} Bf6 {[%emt 0:00:08]} 18. e3 {
[%emt 0:11:46]} Ne5 {[%emt 0:00:59]} 19. Kd2 {[%emt 0:08:45]} Be4 {[%emt 0:00:
00]} 20. Nxe4 {[%emt 0:20:02]} dxe4 {[%emt 0:00:08]} 21. Bg2 {[%emt 0:00:26]}
Nd3 {[%emt 0:04:09]} 22. Rhf1 {[%emt 0:02:26]} Rfd8 {[%emt 0:01:32]} 23. Bxe4 {
[%emt 0:05:49]} Nxb4 {[%emt 0:00:24]} 24. Nb3 {[%emt 0:00:33]} g6 {[%emt 0:00:
00]} 25. Ke2 {[%emt 0:00:19]} Bxd4 {[%emt 0:00:38]} 26. Nxd4 {[%emt 0:00:10]}
f5 {[%emt 0:00:52]} 27. Bf3 {[%emt 0:00:31]} Nf6 {[%emt 0:00:21]} 28. Rfd1 {
[%emt 0:00:22]} Kf7 {[%emt 0:02:22]} 29. Ra4 {[%emt 0:00:34]} Nbd5 {[%emt 0:00:
00]} 30. Nb3 {[%emt 0:00:42]} Nc7 {[%emt 0:00:49]} 31. Rxd8 {[%emt 0:00:36]}
Rxd8 {[%emt 0:00:05]} 32. Na5 {[%emt 0:00:05]} Rb8 {[%emt 0:00:16]} 33. Rd4 {
[%emt 0:01:12]} Nfd5 {[%emt 0:00:36]} 34. h4 {[%emt 0:00:33]} Ne6 {[%emt 0:00:
00]} 35. Bxd5 {[%emt 0:00:15]} cxd5 {[%emt 0:00:13]} 36. Rxd5 {[%emt 0:00:05]}
Rd8 {[%emt 0:01:50]} 37. Rxd8 {[%emt 0:00:25]} Nxd8 {[%emt 0:00:08]} 38. Kd3 {
[%emt 0:00:17]} Ke6 {[%emt 0:00:11]} 39. Kd4 {[%emt 0:00:17]} h6 {[%emt 0:00:
00]} 40. b3 {[%emt 0:01:02]} Kd7 {[%emt 0:01:28]} 41. Kd5 {[%emt 0:30:14]} Kc7
{[%emt 0:30:20]} 42. f3 {[%emt 0:01:00]} Kd7 {[%emt 0:00:28]} 43. Nxb7 {
[%emt 0:00:21]} Nxb7 {[%emt 0:00:07]} 44. c6+ {[%emt 0:00:04]} Kc7 {[%emt 0:00:
00]} 45. cxb7 {[%emt 0:00:05]} Kxb7 {[%emt 0:00:08]} 46. g4 {[%emt 0:00:12]}
Kb6 {[%emt 0:00:12]} 47. e4 {[%emt 0:00:30]} fxg4 {[%emt 0:00:32]} 48. fxg4 {
[%emt 0:00:06]} 1-0

[Event "44th Chess Olympiad Open 2022"]
[Site "Chennai"]
[Date "2022.07.30"]
[Round "2.49"]
[White "Prudente, Elmer"]
[Black "El Jawich, Amro"]
[Result "0-1"]
[WhiteElo "1995"]
[BlackElo "2314"]
[Annotator "TA"]
[PlyCount "41"]
[EventDate "2022.??.??"]
[TimeControl "60"]

{[%evp 15,41,25,34,-91,-100,-132,-133,-185,-122,-270,-266,-253,-163,-325,-303,
-284,-183,-437,-286,-386,-333,-572,-559,-661,-640,-846,-839,-1791]} 1. e4 {
[%emt 0:00:08]} c5 {[%emt 0:00:05]} 2. Nf3 {[%emt 0:00:07]} d6 {[%emt 0:00:12]}
3. d4 {[%emt 0:00:09]} cxd4 {[%emt 0:00:06]} 4. Nxd4 {[%emt 0:00:03]} Nf6 {
[%emt 0:00:10]} 5. Nc3 {[%emt 0:00:10]} Nc6 {[%emt 0:00:06]} 6. f3 {[%emt 0:00:
00]} e5 {[%emt 0:00:33]} 7. Nb3 {[%emt 0:00:10]} Be6 {[%emt 0:01:13]} 8. Be3 {
[%emt 0:00:33]} Be7 {[%emt 0:00:19]} 9. g4 {[%emt 0:01:43] [#] B56: Classical
Sicilian: Unusual Lines.} (9. Qe2 $14) 9... d5 $1 $17 {[%emt 0:07:45] Strongly
threatening ...d4.} 10. exd5 {[%emt 0:17:21]} Nxd5 {[%emt 0:00:14] [#]} 11. Bf2
$146 {[%emt 0:00:39]} (11. Nxd5 $17 {is a better defense.} Bh4+ 12. Bf2 Bxf2+
13. Kxf2 Bxd5 14. c4 Qh4+ 15. Kg1) ({Predecessor:} 11. Nxd5 Bxd5 12. Bd3 Bh4+
13. Kf1 Qf6 14. Kg2 Bg5 15. Bf2 h5 16. Be4 Bxe4 17. fxe4 {0-1 (35) Dovzhenko,V
(2191)-Radovanovic,J (2339) Pardubice 2016}) 11... Bh4 {[%emt 0:09:02]} (11...
Bb4 $19 {Hoping for ...Qf6.} 12. a3 Nxc3 13. Qxd8+ Rxd8 14. axb4 {[#]} Nxb4 $1)
12. Ne4 {[%emt 0:00:19] Inhibits Qf6.} (12. Nxd5 $17 Bxf2+ 13. Kxf2 Bxd5 14. c4
Qh4+ 15. Kg1) 12... Bxf2+ $19 {[%emt 0:01:27]} 13. Kxf2 {[%emt 0:06:37]} Qh4+ {
[%emt 0:08:41]} 14. Ng3 $2 {[%emt 0:01:23]} (14. Kg1) 14... Rd8 {[%emt 0:05:58]
} 15. Qe1 {[%emt 0:05:46]} O-O {[%emt 0:02:16] aiming for ...f5.} 16. Nc5 $2 {
[%emt 0:01:56]} (16. Kg1) 16... Bc8 {[%emt 0:03:49]} 17. Rd1 {[%emt 0:06:06]}
Nd4 {[%emt 0:08:10][%cal Yd4f3] And now ...Nxf3! would win.} 18. Qe4 {[%emt 0:
00:00]} (18. Rd2 Bxg4 19. fxg4 Qf6+ 20. Nf5 Nxf5 21. gxf5 Qh4+ 22. Ke2 Qg4+ 23.
Kf2 Qh4+ 24. Ke2 Qh5+ 25. Kf2 Qh4+) 18... b6 {[%emt 0:07:06] Black is clearly
winning.} 19. Nb3 {[%emt 0:08:58]} Nf6 {[%emt 0:01:24]} 20. Qd3 {[%emt 0:10:39]
} Nxb3 {[%emt 0:01:15]} 21. Ke2 {[%emt 0:02:13] White got outplayed after the
opening. Weighted Error Value: White=1.21/Black=0.23 (precise)} 0-1